Cogmind - Beta 17 @@@ ROGUE MODE // 2026.08.10 @ 17:40:56 Player: Lazz Result: Self-destructed Performance ------------- Evolutions (7) 3500 Regions Visited (14) 2800 Robots Destroyed (69) 345 Value Destroyed (2150) 2150 Prototype IDs (19) 380 Alien Tech Used (1) 200 Bonus (2594) 2594 TOTAL SCORE: 11969 Bonus ------- High Alert Combat Kills 6 Follower Combat Kills 333 Awakened Behemoth Slayer 1000 Entered DSFs 500 Met Data Miner 300 Met Imprinter 300 Was Imprinted 300 Friendly Fire -145 Cogmind --------- Core Integrity 584/1300 Matter 9/300 Energy 7/580 System Corruption 8% Temperature Warm (102) Movement Hovering (176) Ox2 Location -3/Research Parts ------- > --- POWER (2) -------- Particle Reactor Particle Reactor > --- PROPULSION (7) --- Improved Antigrav System Improved Antigrav System Impulse Thruster Array Impulse Thruster Array > --- UTILITY (10) ----- Advanced Heat Sink Experimental Sensor Array Improved Hardlight Generator Improved Remote Shield > --- WEAPON (3) ------- Heavy Machine Gun Heavy Machine Gun Heavy Machine Gun > --- INVENTORY (5) ---- Xenon Bombardment Thruster Xenon Bombardment Thruster CR-A16's Behemoth Slayer Peak State ------------ > --- POWER ------------ Particle Reactor Particle Reactor > --- PROPULSION ------- Improved Antigrav System Improved Antigrav System Improved Antigrav System Impulse Thruster Array Impulse Thruster Array > --- UTILITY ---------- Advanced Heat Sink Experimental Sensor Array Improved Hardlight Generator Improved Remote Shield > --- WEAPON ----------- Heavy Machine Gun Heavy Machine Gun Heavy Machine Gun > --- INVENTORY -------- Xenon Bombardment Thruster Xenon Bombardment Thruster CR-A16's Behemoth Slayer [Rating: 111] Favorites ----------- Power Reinforced Ion Engine Engine Reinforced Ion Engine Power Core Fission Core Reactor Particle Reactor Propulsion Light Treads Treads Light Treads Leg Carbon-fiber Leg Wheel Wheel Hover Unit Improved Antigrav System Flight Unit Impulse Thruster Array Utility High-capacity Storage Unit Device Structural Scanner Storage High-capacity Storage Unit Processor Improved Signal Interpreter Protection Layered Light Armor Plating Weapon Beamcaster Energy Gun Beamcaster Ballistic Gun Heavy Machine Gun Ballistic Cannon Improved Light Cannon Launcher Grenade Launcher Special Weapon Molecular Deconstructor Piercing Weapon CR-A16's Behemoth Slayer Build | -11 -10 -9 -9 -7 -6 -6 -6 -6 -6 -5 -5 -4 -4 -3 ------- Run | Yrd Mat Mat Min Zio Pro Fac Low Low Dat Pro Fac Fac DSF Res Slots Evolved 14 | . . 2 . . . 6 . . . . 2 2 . 2 Power 1 | . . . . . . 1 . . . . . . . . Propulsion 4 | . . 1 . . . 1 . . . . . 2 . . Utility 8 | . . . . . . 4 . . . . 2 . . 2 Weapon 1 | . . 1 . . . . . . . . . . . . Parts Attached 105 | 7 2 4 4 1 5 19 1 4 . 5 17 . 18 18 Power 14 | 1 1 1 1 . 1 2 . . . 2 2 . 1 2 Engine 8 | 1 1 1 1 . 1 1 . . . 1 1 . . . Core 2 | . . . . . . 1 . . . . 1 . . . Reactor 4 | . . . . . . . . . . 1 . . 1 2 Propulsion 38 | 2 . 1 . 1 3 7 . 2 . 1 3 . 9 9 Treads 17 | 2 . . . 1 3 7 . 2 . 1 1 . . . Leg 6 | . . . . . . . . . . . 2 . 4 . Wheel 6 | . . 1 . . . . . . . . . . 5 . Hover 3 | . . . . . . . . . . . . . . 3 Flight 6 | . . . . . . . . . . . . . . 6 Utility 32 | 2 . 1 3 . 1 7 . 2 . . 7 . 6 3 Device 15 | 1 . . 3 . . 3 . . . . 5 . . 3 Storage 2 | 1 . 1 . . . . . . . . . . . . Processor 2 | . . . . . . 2 . . . . . . . . Hackware . | . . . . . . . . . . . . . . . Protection 13 | . . . . . 1 2 . 2 . . 2 . 6 . Artifact . | . . . . . . . . . . . . . . . Weapon 21 | 2 1 1 . . . 3 1 . . 2 5 . 2 4 Energy Gun 8 | 2 . . . . . 3 . . . . 3 . . . Energy Cannon . | . . . . . . . . . . . . . . . Ballistic Gun 6 | . . . . . . . . . . . . . 2 4 Ballistic Cannon 2 | . . 1 . . . . . . . 1 . . . . Launcher 2 | . 1 . . . . . . . . . 1 . . . Special Weapon 1 | . . . . . . . . . . . 1 . . . Impact Weapon . | . . . . . . . . . . . . . . . Slashing Weapon . | . . . . . . . . . . . . . . . Piercing Weapon 2 | . . . . . . . 1 . . 1 . . . . Special Melee Weapon . | . . . . . . . . . . . . . . . Unidentified Prototypes 5 | . . . 1 . . . 1 . . . 2 . . 1 Parts Lost 47 | . 1 . . . . 4 . 4 . 10 14 . 8 6 Power 4 | . . . . . . . . . . 2 2 . . . Propulsion 22 | . . . . . . 3 . 3 . 3 5 . 3 5 Utility 12 | . . . . . . 1 . 1 . 2 3 . 5 . Weapon 9 | . 1 . . . . . . . . 3 4 . . 1 Highest Loss Streak 12 | . 1 . . . . 2 . 3 . 7 12 . 8 5 To Critical Strikes . | . . . . . . . . . . . . . . . Average Backups 15 | . 3 6 9 18 19 19 19 19 18 19 15 5 5 3 Power . | . . . . 1 1 1 . . . . . . . . Propulsion 1 | . 1 . 1 2 2 1 1 . . . . . . 1 Utility 9 | . 2 5 7 10 11 10 13 13 13 13 10 4 4 . Weapon 2 | . . . . 3 4 4 4 4 4 4 3 1 1 . Tool/Special . | . . . . . . . . . . . . . . . Unused Backups 21 | . . . . 5 2 2 . . . 2 9 . . 1 Power . | . . . . . . . . . . . . . . . Propulsion 2 | . . . . . 2 . . . . . . . . . Utility 15 | . . . . 3 . 2 . . . 2 8 . . . Weapon 3 | . . . . 2 . . . . . . . . . 1 Tool/Special 1 | . . . . . . . . . . . 1 . . . Average Slot Usage (%) 91 | . 100 96 100 100 100 95 100 97 93 89 85 5 39 49 Engine 8 | . 14 11 11 11 11 6 12 12 12 5 1 . . . Core 1 | . . . . . . 5 . . . . 3 . . . Treads 21 | . 28 22 22 22 30 22 26 28 25 24 13 . . . Wheel 4 | . . 10 11 11 2 . . . . . . . 1 1 Device 11 | . 14 11 11 11 5 16 12 7 . 6 21 . . 12 Storage 7 | . 14 11 11 11 11 6 6 6 6 6 4 . . . Processor 4 | . . . . . . 10 12 12 12 6 5 5 3 . Protection 4 | . . . . . 5 4 6 10 18 17 7 . 17 . Energy Gun 17 | . 26 22 22 22 22 19 19 17 18 11 13 . . . Ballistic Cannon 4 | . . 7 11 11 11 . . . . 2 . . . . Peak Build Rating 111 | 7 7 12 21 25 31 74 67 70 68 83 84 6 84 111 Average Rating 44 | 6 6 10 12 17 25 63 64 65 64 73 74 6 53 87 On Entrance 29 | . 7 7 12 13 19 30 67 65 64 68 46 6 6 33 Avg Prop Armor Cover (%) 15 | . . 18 16 15 16 . . . . . 5 . 11 16 Naked Turns 5 | . . . . . . . . . . . . . 5 . Heaviest Build 108 | 14 14 55 58 58 62 89 84 88 89 97 108 . 78 69 Greatest Support 126 | 40 40 10 40 20 78 108 126 126 106 116 83 3 100 44 Greatest Overweight (x) 25 | 1 . 5 5 5 5 1 . 1 . 1 6 . 25 5 Average Overweight (x) 1 | . . 4 4 4 . . . . . . . . . . Largest Inventory Capacity 20 | 8 8 20 20 20 20 20 20 20 20 20 20 5 5 5 Average Capacity 17 | 7 8 20 20 20 20 20 20 20 20 20 19 5 5 5 Most Carried 20 | 2 5 8 12 20 20 20 20 20 19 20 20 5 5 5 Average Carried 15 | . 3 6 9 18 19 19 19 19 18 19 16 5 5 3 Final Capacity 20 | 8 8 20 20 20 20 20 20 20 20 20 5 5 5 5 Final Carried 20 | 2 5 8 11 20 19 20 19 19 18 20 5 5 5 3 Class Distribution -------------------- 33% | Skirmisher 16% | Scavenger-Skirmisher 13% | Scavenger-Tank 10% | Mutant 8% | Derelict-Skirmisher 4% | Gunner 3% | Derelict-Tank 3% | Derelict-Gunner Dominant Class ---------------- Mutant | -10/Materials Gunner | -9/Materials Skirmisher | -9/Mines Skirmisher | -7/Zion Skirmisher | -6/Proximity Caves Scavenger-Skirmisher | -6/Factory Derelict-Skirmisher | -6/Lower Caves Scavenger-Skirmisher | -6/Lower Caves Derelict-Tank | -6/Data Miner Scavenger-Tank | -5/Proximity Caves Scavenger-Tank | -5/Factory Scavenger-Tank | -4/Factory Mutant | -4/DSF Scavenger-Tank | -3/Research Resources | -11 -10 -9 -9 -7 -6 -6 -6 -6 -6 -5 -5 -4 -4 -3 ----------- Run | Yrd Mat Mat Min Zio Pro Fac Low Low Dat Pro Fac Fac DSF Res Matter Collected 1614 | 270 56 101 88 50 96 259 18 164 . 89 211 . 8 204 Remotely . | . . . . . . . . . . . . . . . Salvage Created 2764 | 193 169 94 9 . 112 752 . 210 . 141 880 . . 204 Parts 135 | 10 27 9 . . 5 26 . 12 . 14 25 . . 7 Haulers Intercepted 1 | . . . . . . 1 . . . . . . . . Recyclers Shooed 4 | . . 2 . . . . . . . . 2 . . . Parts Field Recycled . | . . . . . . . . . . . . . . . Retrieved Matter . | . . . . . . . . . . . . . . . Parts Self-Destructed 47 | . . . . 1 18 . . 17 . 11 . . . . Prevented 5 | . . . . . 5 . . . . . . . . . Parts Restored . | . . . . . . . . . . . . . . . Kills | -11 -10 -9 -9 -7 -6 -6 -6 -6 -6 -5 -5 -4 -4 -3 ------- Run | Yrd Mat Mat Min Zio Pro Fac Low Low Dat Pro Fac Fac DSF Res Combat Hostiles Destroyed 51 | . 7 5 2 . 3 9 . 2 . 2 16 . . 5 Melee 1 | . . . . . . . . . . . . . . 1 Guns 36 | . 4 5 . . 3 7 . . . 1 12 . . 4 Cannons 3 | . . . 2 . . . . . . . 1 . . . AOE 3 | . 3 . . . . . . . . . . . . . Classes Destroyed 17 | 2 4 1 1 . . 3 . 2 . 1 3 . . . Worker 2 | . 1 . . . . . . . . . 1 . . . Builder 3 | . 2 . . . . . . . . . 1 . . . Tunneler 7 | 5 1 . . . . . . . . . 1 . . . Hauler 1 | . . . . . . 1 . . . . . . . . Recycler 3 | 1 . . . . . 1 . . . . 1 . . . Minesweeper 1 | . . . . . . . . 1 . . . . . . Watcher 2 | . . . . . . . . . . . 2 . . . Swarmer 26 | . 6 4 . . 2 3 . . . . 7 . . 4 Grunt 7 | . 1 . . . 1 1 . . . . 4 . . . Brawler 1 | . . . . . . . . . . . 1 . . . Duelist 2 | . . . . . . . . . . . 2 . . . Sentry 7 | . . 1 . . . 3 . 1 . . 1 . . 1 Specialist 2 | . . . . . . . . . . 1 1 . . . Programmer 2 | . . . . . . 2 . . . . . . . . Behemoth 2 | . . . . . . . . 1 . 1 . . . . Assembled 2 | . . . 2 . . . . . . . . . . . Mutant 1 | . . . . . . 1 . . . . . . . . Best Kill Streak 7 | 2 5 3 2 . 2 2 . 1 . 1 7 . . 4 Combat Bots Only 5 | . 5 3 2 . 2 2 . 1 . 1 5 . . 4 Max Kills in Single Turn 2 | 1 2 1 1 . 1 1 . 1 . 1 2 . . 1 Gunslinging 1 | . . . . . . . . . . . 1 . . . Exploded 1 | . 1 . . . . . . . . . . . . . Melee 1 | . . . . . . . . . . . . . . 1 Uniques/NPCs Destroyed . | . . . . . . . . . . . . . . . Combat | -11 -10 -9 -9 -7 -6 -6 -6 -6 -6 -5 -5 -4 -4 -3 -------- Run | Yrd Mat Mat Min Zio Pro Fac Low Low Dat Pro Fac Fac DSF Res Hostile Shots Fired 1042 | . 29 36 9 . 98 140 . 78 . 63 148 . 259 182 Missed 361 | . 7 10 3 . 34 59 . 25 . 16 39 . 98 70 Hits 681 | . 22 26 6 . 64 81 . 53 . 47 109 . 161 112 Melee 5 | . . . . . . . . . . . 5 . . . Projectile 676 | . 22 26 6 . 64 81 . 53 . 47 104 . 161 112 AOE 2 | . . . . . . 2 . . . . . . . . Critical Strikes 22 | . 1 . . . 2 3 . 2 . 1 6 . 4 3 Part Disruptions 3 | . . . . . . . . . . 1 2 . . . Actively Blocked 1 | . . . . . . . . . . 1 . . . . Damage Taken 11809 | . 191 209 97 . 872 1146 . 1054 . 895 2287 . 2889 2169 Core 1582 | . 27 37 29 . 68 132 . 86 . 51 334 . 102 716 Absorbed by Shields 360 | . . . . . . . . . . . 174 . . 186 Redirected to Shielding 224 | . . . . . . . . 27 . 78 119 . . . Ignored by Resistances 184 | . . . . . . . . 36 . 56 38 . 54 . Regen/Repaired (Parts) 281 | . . . . 281 . . . . . . . . . . Core Remaining (%) 80 | 100 89 . . . 66 . . . . 68 66 . 91 . Volleys Fired 182 | 17 18 18 7 . 19 38 . 4 . 2 36 . . 23 Largest 3 | 2 2 3 3 . 3 3 . 3 . 3 3 . . 3 Hottest 245 | 90 90 123 123 . 123 231 . 231 . 203 245 . . 90 Shots Fired 426 | 34 30 54 21 . 37 104 . 12 . 4 97 . . 33 Gun 378 | 34 27 36 14 . 28 104 . 12 . 2 88 . . 33 Cannon 44 | . . 18 7 . 9 . . . . 2 8 . . . Launcher 4 | . 3 . . . . . . . . . 1 . . . Special . | . . . . . . . . . . . . . . . Kinetic 77 | . . 18 7 . 9 . . . . 2 8 . . 33 Thermal 345 | 34 27 36 14 . 28 104 . 12 . 2 88 . . . Explosive 3 | . 3 . . . . . . . . . . . . . Electromagnetic 1 | . . . . . . . . . . . 1 . . . Robot Hit Streak 39 | 7 4 7 2 . 3 17 . 8 . 11 39 . . 5 Robot Miss Streak 4 | 4 2 4 3 . 4 4 . 3 . . 2 . . 2 Penetration Max . | . . . . . . . . . . . . . . . Secondary Targets 6 | . 1 . . . . 1 . . . . 4 . . . Max Gunslinging Chain 2 | . 1 . . . . 1 . . . . 2 . . . Shots Hit Robots 275 | 22 14 23 8 . 16 71 . 15 . 4 78 . . 24 Core Hits 147 | 7 15 7 5 . 13 24 . 6 . 2 61 . . 7 Critical Kills . | . . . . . . . . . . . . . . . Critical Parts Destroyed . | . . . . . . . . . . . . . . . Critical Strikes 22 | . 2 1 3 . 1 9 . 1 . . 5 . . . Burn 19 | . 2 . 2 . 1 9 . 1 . . 4 . . . Blast 3 | . . 1 1 . . . . . . . 1 . . . Melee Attacks 19 | . . . . . . . 1 10 . 4 . . . 4 Impact . | . . . . . . . . . . . . . . . Slashing . | . . . . . . . . . . . . . . . Piercing 19 | . . . . . . . 1 10 . 4 . . . 4 Sneak Attacks 1 | . . . . . . . . . . . . . . 1 Combat Hostiles . | . . . . . . . . . . . . . . . Follow-up Attacks . | . . . . . . . . . . . . . . . Damage Inflicted 6481 | 264 450 401 179 . 230 1577 . 367 . 80 2195 . . 738 Guns 5203 | 264 207 251 93 . 191 1577 . 174 . 44 1790 . . 612 Cannons 522 | . . 150 86 . 39 . . . . 30 217 . . . Explosions 431 | . 243 . . . . . . . . . 188 . . . Melee 294 | . . . . . . . . 193 . . . . . 101 Ramming 31 | . . . . . . . . . . 6 . . . 25 Kinetic 1134 | . . 150 86 . 39 . . . . 30 217 . . 612 Thermal 4683 | 264 207 251 93 . 191 1577 . 174 . 44 1882 . . . Explosive 243 | . 243 . . . . . . . . . . . . . Electromagnetic 96 | . . . . . . . . . . . 96 . . . Impact . | . . . . . . . . . . . . . . . Slashing . | . . . . . . . . . . . . . . . Piercing 294 | . . . . . . . . 193 . . . . . 101 Highest Corruption 6 | . . . . . . 1 1 1 1 2 6 . 4 6 Average Corruption 1 | . . . . . . 1 1 1 1 1 3 . 2 3 Corruption Purged . | . . . . . . . . . . . . . . . Corruption Blocked . | . . . . . . . . . . . . . . . Effects 19 | . . . . . . 4 7 3 1 1 1 . 1 1 Message Errors 6 | . . . . . . 1 1 2 1 . 1 . . . Matter Fused 5 | . . . . . . 1 1 1 . 1 . . 1 . Heat Flow Errors 2 | . . . . . . . 1 . . . . . . 1 Energy Discharges 1 | . . . . . . . 1 . . . . . . . Data Loss (minor) 4 | . . . . . . 1 3 . . . . . . . Misfires 1 | . . . . . . 1 . . . . . . . . Overload Shots . | . . . . . . . . . . . . . . . Overflow Damage 88 | . . . . . . . . . . . 55 . . 33 Projectiles 14 | . . . . . . . . . . . 14 . . . Explosions 41 | . . . . . . . . . . . 41 . . . Melee 33 | . . . . . . . . . . . . . . 33 Knockbacks 11 | . . 3 . . 1 . . . . 1 6 . . . Impact . | . . . . . . . . . . . . . . . Kinetic 10 | . . 3 . . 1 . . . . 1 5 . . . Secondary 1 | . . . . . . . . . . . 1 . . . Self-Inflicted Damage 25 | . . . . . . . . . . . 14 . . 11 Shots 1 | . . . . . . . . . . . 1 . . . Rammed 4 | . . . . . . . . . . 1 . . . 3 Targets Rammed 4 | . . . . . . . . . . 1 . . . 3 Kicked . | . . . . . . . . . . . . . . . Crushed . | . . . . . . . . . . . . . . . Highest Temperature 415 | 90 162 333 206 . 293 415 168 375 . 162 92 . 17 260 Average Temperature 114 | 37 69 151 85 . 113 156 92 144 . 59 24 . 12 67 Received Heat Transfer 1609 | . 24 9 . . 84 288 . 198 . 177 59 . 756 14 Effects 16 | . . . . . 3 12 . 1 . . . . . . Shutdowns 3 | . . . . . . 3 . . . . . . . . Energy Bleed 2 | . . . . . . 2 . . . . . . . . Interference 10 | . . . . . 3 7 . . . . . . . . Matter Decay 1 | . . . . . . . . 1 . . . . . . Siege Activations . | . . . . . . . . . . . . . . . Martial Activations . | . . . . . . . . . . . . . . . Shielding Activations . | . . . . . . . . . . . . . . . Robots Disrupted . | . . . . . . . . . . . . . . . Combat Hostiles . | . . . . . . . . . . . . . . . Robots Corrupted . | . . . . . . . . . . . . . . . Combat Hostiles . | . . . . . . . . . . . . . . . Parts Fried 1 | . . . . . . 1 . . . . . . . . Impact Corruptions . | . . . . . . . . . . . . . . . Robots Melted 8 | . . . . . . 3 . 1 . . 4 . . . Combat Hostiles 6 | . . . . . . 2 . 1 . . 3 . . . Parts Melted 30 | 2 1 1 . . . 11 . . . . 15 . . . Heat Transferred 11656 | 682 705 644 408 . 582 3441 . 370 . 74 4750 . . . Parts Sabotaged . | . . . . . . . . . . . . . . . Parts Stolen . | . . . . . . . . . . . . . . . Parts Stripped . | . . . . . . . . . . . . . . . Power Chain Reactions . | . . . . . . . . . . . . . . . Alert | -11 -10 -9 -9 -7 -6 -6 -6 -6 -6 -5 -5 -4 -4 -3 ------- Run | Yrd Mat Mat Min Zio Pro Fac Low Low Dat Pro Fac Fac DSF Res Maximum Alert Level 2 | . . . . . . 2 . . . . 1 . . . Low Security (%) 68 | 100 100 100 100 . . 23 . . . . 52 100 100 100 Level 1 31 | . . . . . . 76 . . . . 47 . . . Level 2 . | . . . . . . . . . . . . . . . Level 3 . | . . . . . . . . . . . . . . . Level 4 . | . . . . . . . . . . . . . . . Level 5 . | . . . . . . . . . . . . . . . High Security . | . . . . . . . . . . . . . . . Max Security . | . . . . . . . . . . . . . . . Peak Influence 408 | 5 185 74 3 . . 408 . . . . 264 61 42 80 Initial 320 | . . 59 3 . . 320 . . . . . 56 42 . Average 124 | . 111 36 . . . 261 . . . . 185 56 32 18 Influence Increases 2255 | 30 240 141 . . 443 550 . 115 . 50 515 5 . 166 Destroy 0b10 Robot/C 1260 | . 140 100 . . 300 220 . 40 . 40 320 . . 100 Destroy 0b10 Robot/NC 105 | 30 20 . . . 10 10 . 5 . . 30 . . . Destroy Leader 266 | . 30 20 . . 30 72 . 10 . 10 74 . . 20 Allied During Kill 110 | . . . . . 103 7 . . . . . . . . Successful Hack 29 | . 6 18 . . . . . . . . . 5 . . Select Force Hacks 30 | . 30 . . . . . . . . . . . . . Disable Machine 90 | . . . . . . 30 . . . . 45 . . 15 Destroy Structure 80 | . 14 3 . . . 1 . . . . 46 . . 16 Advance Influence 150 | . . . . . . 150 . . . . . . . . Lose Combat Pursuer 135 | . . . . . . 60 . 60 . . . . . 15 Influence Decreases 2255 | 30 100 271 10 . 173 666 154 115 . 50 400 59 61 166 Entered New Map 324 | . . 81 7 . . 100 58 . . . . 59 19 . Time Decay 1630 | 30 90 190 3 . 153 506 96 115 . 50 260 . . 137 Lost Part 261 | . 10 . . . . 40 . . . . 140 . 42 29 Lost Ally 40 | . . . . . 20 20 . . . . . . . . Squads Dispatched 16 | . 1 . . . . 3 . 1 . . 7 . 1 3 Investigation 1 | . 1 . . . . . . . . . . . . . Extermination 3 | . . . . . . 2 . . . . . . . 1 Reinforcement 7 | . . . . . . 1 . . . . 3 . 1 2 Assault 1 | . . . . . . . . 1 . . . . . . Garrison 4 | . . . . . . . . . . . 4 . . . Intercept . | . . . . . . . . . . . . . . . Searches Triggered . | . . . . . . . . . . . . . . . Construction Impeded . | . . . . . . . . . . . . . . . Haulers Reinforced 1 | . . . . . . . . . . . . . . 1 Active Scanning Responses . | . . . . . . . . . . . . . . . Cargo Convoy Interrupts . | . . . . . . . . . . . . . . . Stealth | -11 -10 -9 -9 -7 -6 -6 -6 -6 -6 -5 -5 -4 -4 -3 --------- Run | Yrd Mat Mat Min Zio Pro Fac Low Low Dat Pro Fac Fac DSF Res Distress Signals 4 | . 1 1 1 . . . . . . . 1 . . . Communications Jammed . | . . . . . . . . . . . . . . . Distress Signals . | . . . . . . . . . . . . . . . Times Spotted 125 | . 7 6 16 . 16 21 . 8 . 8 22 . 9 12 Peak Tracking Total 13 | . 4 4 13 . 4 4 . 7 . 6 4 . 6 5 Tactical Retreats 5 | . . . . . . 2 . 2 . . . . . 1 Traps | -11 -10 -9 -9 -7 -6 -6 -6 -6 -6 -5 -5 -4 -4 -3 ------- Run | Yrd Mat Mat Min Zio Pro Fac Low Low Dat Pro Fac Fac DSF Res Traps Triggered 1 | . . . . . . 1 . . . . . . . . Indirectly . | . . . . . . . . . . . . . . . Trap Hack Attempts . | . . . . . . . . . . . . . . . Triggered . | . . . . . . . . . . . . . . . Disarmed . | . . . . . . . . . . . . . . . Reprogrammed . | . . . . . . . . . . . . . . . Reused . | . . . . . . . . . . . . . . . Traps Extracted . | . . . . . . . . . . . . . . . Installed . | . . . . . . . . . . . . . . . Triggered . | . . . . . . . . . . . . . . . Machines | -11 -10 -9 -9 -7 -6 -6 -6 -6 -6 -5 -5 -4 -4 -3 ---------- Run | Yrd Mat Mat Min Zio Pro Fac Low Low Dat Pro Fac Fac DSF Res Machines Disabled 7 | . . . . . . 2 . . . 1 3 . . 1 Max in Single Turn 2 | . . . . . . 1 . . . 1 2 . . 1 Machines Repaired . | . . . . . . . . . . . . . . . Machines Dismantled . | . . . . . . . . . . . . . . . Machines Sabotaged . | . . . . . . . . . . . . . . . Overloaded Fab Kills . | . . . . . . . . . . . . . . . Hacking | -11 -10 -9 -9 -7 -6 -6 -6 -6 -6 -5 -5 -4 -4 -3 --------- Run | Yrd Mat Mat Min Zio Pro Fac Low Low Dat Pro Fac Fac DSF Res Machines Accessed 13 | . 2 4 1 . . 1 . . 4 . . 1 . . Terminals 6 | . 1 3 1 . . . . . . . . 1 . . Fabricators . | . . . . . . . . . . . . . . . Repair Stations . | . . . . . . . . . . . . . . . Recycling Units 1 | . 1 . . . . . . . . . . . . . Scanalyzers 2 | . . 1 . . . 1 . . . . . . . . Garrison Access . | . . . . . . . . . . . . . . . Total Hacks 53 | . 3 12 4 . . 2 . . 30 . . 2 . . Successful 43 | . 2 6 3 . . 1 . . 30 . . 1 . . Failed 9 | . 1 5 1 . . 1 . . . . . 1 . . Catastrophic 2 | . . 2 . . . . . . . . . . . . Database Lockouts 1 | . . 1 . . . . . . . . . . . . Manual 20 | . 3 5 . . . 8 . . . 1 3 . . . Terminals 16 | . 2 8 4 . . . . . . . . 2 . . Fabricators . | . . . . . . . . . . . . . . . Repair Stations . | . . . . . . . . . . . . . . . Recycling Units 1 | . 1 . . . . . . . . . . . . . Scanalyzers 6 | . . 4 . . . 2 . . . . . . . . Garrison Access . | . . . . . . . . . . . . . . . Terminal Hacks 39 | . 1 4 3 . . . . . 30 . . 1 . . Record 14 | . . . 3 . . . . . 11 . . . . . Part Schematic 11 | . . . . . . . . . 11 . . . . . Robot Schematic 5 | . . . . . . . . . 5 . . . . . Robot Analysis 3 | . 1 2 . . . . . . . . . . . . Prototype ID Bank 5 | . . 2 . . . . . . 3 . . . . . Open DSF 1 | . . . . . . . . . . . . 1 . . Fabricator Hacks . | . . . . . . . . . . . . . . . Repair Station Hacks . | . . . . . . . . . . . . . . . Recycling Unit Hacks . | . . . . . . . . . . . . . . . Scanalyzer 3 | . . 2 . . . 1 . . . . . . . . Retrieve Study 3 | . . 2 . . . 1 . . . . . . . . Garrison Access Hacks . | . . . . . . . . . . . . . . . Unauthorized Hacks 1 | . 1 . . . . . . . . . . . . . Terminals . | . . . . . . . . . . . . . . . Fabricators . | . . . . . . . . . . . . . . . Repair Stations . | . . . . . . . . . . . . . . . Recycling Units 1 | . 1 . . . . . . . . . . . . . Tunnel 1 | . 1 . . . . . . . . . . . . . Scanalyzers . | . . . . . . . . . . . . . . . Garrison Access . | . . . . . . . . . . . . . . . Data Cores Recovered . | . . . . . . . . . . . . . . . Used . | . . . . . . . . . . . . . . . Hacking Detections 6 | . 1 3 . . . 1 . . . . . 1 . . Full Trace Events . | . . . . . . . . . . . . . . . Feedback Events . | . . . . . . . . . . . . . . . Feedback Blocked . | . . . . . . . . . . . . . . . Robot Schematics Acquired 8 | . . . . 3 . . . . 5 . . . . . Robots Built . | . . . . . . . . . . . . . . . Authchips . | . . . . . . . . . . . . . . . Time . | . . . . . . . . . . . . . . . Total Robot Build Rating . | . . . . . . . . . . . . . . . Part Schematics Acquired 26 | . . . . 15 . . . . 11 . . . . . Parts Built . | . . . . . . . . . . . . . . . Authchips . | . . . . . . . . . . . . . . . Time . | . . . . . . . . . . . . . . . Total Part Build Rating . | . . . . . . . . . . . . . . . Part Studies Acquired 3 | . . 2 . . . 1 . . . . . . . . Parts Repaired . | . . . . . . . . . . . . . . . Time . | . . . . . . . . . . . . . . . Parts Recycled . | . . . . . . . . . . . . . . . Recycled Matter . | . . . . . . . . . . . . . . . Retrieved Matter . | . . . . . . . . . . . . . . . Retrieved Components . | . . . . . . . . . . . . . . . Parts Scanalyzed . | . . . . . . . . . . . . . . . Part Schematics Acquired . | . . . . . . . . . . . . . . . Parts Damaged . | . . . . . . . . . . . . . . . Bothacking | -11 -10 -9 -9 -7 -6 -6 -6 -6 -6 -5 -5 -4 -4 -3 ------------ Run | Yrd Mat Mat Min Zio Pro Fac Low Low Dat Pro Fac Fac DSF Res Used RIF Installer . | . . . . . . . . . . . . . . . Robots Hacked . | . . . . . . . . . . . . . . . Non-combat . | . . . . . . . . . . . . . . . Combat . | . . . . . . . . . . . . . . . Robot Hacks Applied . | . . . . . . . . . . . . . . . Relay Couplers Released . | . . . . . . . . . . . . . . . Fabnet Peak Effective % . | . . . . . . . . . . . . . . . Robots Rewired . | . . . . . . . . . . . . . . . Allies Hacked . | . . . . . . . . . . . . . . . Hacks Repelled . | . . . . . . . . . . . . . . . Allies | -11 -10 -9 -9 -7 -6 -6 -6 -6 -6 -5 -5 -4 -4 -3 -------- Run | Yrd Mat Mat Min Zio Pro Fac Low Low Dat Pro Fac Fac DSF Res Total Allies 9 | . . . 4 4 . 1 . . . . . . . . Largest Group 5 | . . . 3 5 5 2 . . . . . . . . Highest-Rated Group 169 | . . . 40 169 169 79 . . . . . . . . Highest-Rated Ally 42 | . . . 31 42 42 40 . . . . . . . . Zionite Dispatches 2 | . . . . . . 2 . . . . . . . . Recon 1 | . . . . . . 1 . . . . . . . . Hacking Resupply 1 | . . . . . . 1 . . . . . . . . Total Orders 4 | . . . . . . 2 . . . . 2 . . . ROAM 1 | . . . . . . 1 . . . . . . . . DROP 1 | . . . . . . 1 . . . . . . . . EXPLORE 2 | . . . . . . . . . . . 2 . . . Ally Attacks 65 | . . . 25 . 33 7 . . . . . . . . Total Damage 1084 | . . . 252 . 770 62 . . . . . . . . Kills 25 | . . . 7 . 16 2 . . . . . . . . Allies Corrupted . | . . . . . . . . . . . . . . . Allies Melted . | . . . . . . . . . . . . . . . Intel | -11 -10 -9 -9 -7 -6 -6 -6 -6 -6 -5 -5 -4 -4 -3 ------- Run | Yrd Mat Mat Min Zio Pro Fac Low Low Dat Pro Fac Fac DSF Res Active Infowar (turns) 7046 | 114 215 387 510 2299 266 1030 462 637 2 468 266 . . 390 Sensors 2793 | . . . 15 1 . 552 462 637 2 468 266 . . 390 Terrain 410 | . . . . . . 410 . . . . . . . . Structural 4423 | . . . 466 2298 266 761 242 390 . . . . . . Seismic 745 | 114 215 387 29 . . . . . . . . . . . Robot Analysis Total 3 | . 1 2 . . . . . . . . . . . . Derelict Logs Recovered 7 | . . . 1 3 1 . 1 . . 1 . . . . Drone Launches 4 | . . . . . . . . . . . 4 . . . Drone Recoveries 4 | . . . . . . . . . . . 4 . . . Zionite Intel Received 1 | . . . . . . 1 . . . . . . . . Prototype Stockpiles 1 | . . . . . . 1 . . . . . . . . Exploration | -11 -10 -9 -9 -7 -6 -6 -6 -6 -6 -5 -5 -4 -4 -3 ------------- Run | Yrd Mat Mat Min Zio Pro Fac Low Low Dat Pro Fac Fac DSF Res Turns Passed 9146 | 221 215 387 578 2299 534 1375 462 912 122 584 586 11 204 656 Spaces Moved 4544 | 92 89 215 347 1215 264 595 283 483 76 342 155 21 105 262 Core 104 | 2 . . . . . . . . . . 13 21 25 43 Treads 2599 | 90 89 . 27 254 221 595 283 483 76 342 139 . . . Legs 73 | . . . . . . . . . . . 3 . 70 . Wheels 1573 | . . 215 320 961 43 . . . . . . . 10 24 Hover 100 | . . . . . . . . . . . . . . 100 Flight 95 | . . . . . . . . . . . . . . 95 Fastest Speed 35 | 50 160 130 145 145 145 160 160 160 160 160 50 50 50 35 Average Speed 166 | 158 160 140 152 181 162 194 160 168 160 160 225 50 130 91 Slowest Speed 1300 | 160 160 145 240 320 240 243 160 240 160 240 540 50 1300 360 Overloaded Moves . | . . . . . . . . . . . . . . . Propulsion Burnouts . | . . . . . . . . . . . . . . . Robots Hopped . | . . . . . . . . . . . . . . . Potential Cave-ins . | . . . . . . . . . . . . . . . Cave-ins Triggered . | . . . . . . . . . . . . . . . Exploration Rate (%) 41 | 7 20 25 76 90 51 22 48 67 68 51 5 1 87 5 Regions Visited 14 Branch Regions 7 Pre-discovered Areas 7 | . 1 . 1 4 . . . . 1 . . . . . Known Exits Taken 8 | . . . . . 1 1 1 1 1 1 1 1 . . Unknown Exits Taken 5 | 1 1 1 1 1 . . . . . . . . . . Scrap Searched 9 | . . . 1 2 1 . 1 2 . 2 . . . . Spaces Dug 3 | . . . . . . . 1 . . 2 . . . . Terrain Destroyed 52 | . 18 3 . . . . 1 . . 2 20 . . 8 Melee 2 | . . . . . . . 1 . . 1 . . . . Projectile 14 | . . 3 . . . . . . . 1 2 . . 8 AOE 36 | . 18 . . . . . . . . . 18 . . . Terrain Rammed . | . . . . . . . . . . . . . . . Walls Destroyed . | . . . . . . . . . . . . . . . Machines Disabled . | . . . . . . . . . . . . . . . Actions | -11 -10 -9 -9 -7 -6 -6 -6 -6 -6 -5 -5 -4 -4 -3 --------- Run | Yrd Mat Mat Min Zio Pro Fac Low Low Dat Pro Fac Fac DSF Res Total 5694 | 130 131 258 379 1311 342 734 289 548 76 368 305 20 163 640 Wait 698 | 13 15 17 16 71 45 51 . 41 . 4 74 . 40 311 Move 4531 | 91 88 214 346 1214 263 594 282 482 75 342 154 20 104 262 Hop . | . . . . . . . . . . . . . . . Pick Up 61 | 2 4 4 1 16 2 13 . 2 . 5 8 . . 4 Fast Attach 65 | 7 2 2 2 . . 6 2 1 . 2 7 . 18 16 Attach 29 | . 1 1 1 . . 6 1 2 . 1 10 . . 6 Detach 5 | . . . 2 . . . . . . . 1 . . 2 Swap 46 | . 1 1 3 3 6 14 2 6 1 4 3 . . 2 Drop 55 | . 2 1 1 7 7 12 1 . . 4 12 . 1 7 Fire 182 | 17 18 18 7 . 19 38 . 4 . 2 36 . . 23 Melee 19 | . . . . . . . 1 10 . 4 . . . 4 Ram 3 | . . . . . . . . . . . . . . 3 Kick . | . . . . . . . . . . . . . . . Crush . | . . . . . . . . . . . . . . . Escape Stasis . | . . . . . . . . . . . . . . . Rewire . | . . . . . . . . . . . . . . . Trap . | . . . . . . . . . . . . . . . Miscellaneous . | . . . . . . . . . . . . . . . Route ------- -11/Scrapyard -10/Materials -9/Materials -9/Mines (discovered 3 exits: [*Mat x2] / [*Zio]) -7/Zion -6/Proximity Caves -6/Factory -6/Lower Caves -6/Lower Caves -6/Data Miner -5/Proximity Caves -5/Factory -4/Factory -4/DSF -3/Research History --------- Turn | Location | Event 9 | -11/Scrapyard | Discovered new exit (range 15) 222 | -11/Scrapyard | Entered Materials 317 | -10/Materials | Build established: Mutant 421 | -10/Materials | Discovered new exit (range 11) 437 | -10/Materials | Entered another Materials area 437 | -9/Materials | Evolved 2 slots: Propulsion x1, Weapon x1 483 | -9/Materials | Central database locked down 791 | -9/Materials | Discovered new exit (range 9) 824 | -9/Materials | Entered Mines 832 | -9/Mines | Assisted by bots powering up and referring to "LRC-V3" 845 | -9/Mines | Build established: Gunner 868 | -9/Mines | Assembled infested the area 873 | -9/Mines | Assisted by a Guerilla fighting off Assembled 880 | -9/Mines | Discovered new exit (range 15) 900 | -9/Mines | Met a Derelict bent on vengeance 976 | -9/Mines | Discovered new exit (range 3) 1002 | -9/Mines | Received a Mining Laser from a helpful Derelict 1223 | -9/Mines | Found a damaged Exp. Sensor Array with a note attached 1227 | -9/Mines | Found Prototype Device 1227 | -9/Mines | Identified Exp. Sensor Array 1264 | -9/Mines | Build established: Skirmisher 1379 | -9/Mines | A Derelict revealed a hidden shortcut to a safe place 1397 | -9/Mines | Learned location of Zion (-7) 1402 | -9/Mines | Entered Zion 1402 | -7/Zion | Accompanied by 1 ally 1465 | -7/Zion | Found Prototype Device 1555 | -7/Zion | Discovered new exit (range 12) 1943 | -7/Zion | Found CR-A16's Pointy Stick 1950 | -7/Zion | Learned location of Quarantine (-3) 1970 | -7/Zion | Learned 4 Factory zone layouts 2002 | -7/Zion | Learned location of 1 exit from Proximity Caves 2532 | -7/Zion | Visited the Megawrench Repair Shop 2533 | -7/Zion | Megawrench repaired 9 parts 2559 | -7/Zion | Received a hallucinogenic algorithm 2588 | -7/Zion | Learned location of Warlord (-4) 2913 | -7/Zion | Learned location of Extension (-5) 2923 | -7/Zion | Learned location of Armory (-4) 2939 | -7/Zion | Given the Hacking Drone Bay 2942 | -7/Zion | Found Prototype Device 3213 | -7/Zion | Met Imprinter 3236 | -7/Zion | Imprinted 3238 | -7/Zion | Declared Zion's savior 3701 | -7/Zion | Entered Proximity Caves 3701 | -6/Proximity Caves | Accompanied by 5 allies 3702 | -6/Proximity Caves | Identified exit to Factory 3785 | -6/Proximity Caves | Spotter reported a threat 3810 | -6/Proximity Caves | Learned location of 1 exit from Factory 3963 | -6/Proximity Caves | Attracted the attention of an 0b10 checkpoint 4008 | -6/Proximity Caves | Lost 3 allies 4235 | -6/Proximity Caves | Entered Factory 4235 | -6/Factory | Accompanied by 2 allies 4235 | -6/Factory | Evolved 6 slots: Power x1, Propulsion x1, Utility x4 4236 | -6/Factory | Identified exit to Lower Caves 4319 | -6/Factory | Zion Recon squad teleported in 4528 | -6/Factory | Build established: Scavenger-Skirmisher 4542 | -6/Factory | Zion Hacking Resupply teleported in 5281 | -6/Factory | Retrieved Zion intel report: Prototype Stockpiles 5610 | -6/Factory | Entered Lower Caves 5695 | -6/Lower Caves | Build established: Derelict-Skirmisher 5700 | -6/Lower Caves | Learned Factory emergency access door positions 6007 | -6/Lower Caves | Discovered new exit (range 4) 6012 | -6/Lower Caves | Identified exit to Lower Caves 6044 | -6/Lower Caves | Found Alien Artifact 6044 | -6/Lower Caves | Identified Core Expander 6044 | -6/Lower Caves | Installed Core Expander, added new Propulsion slot 6072 | -6/Lower Caves | Entered another Lower Caves area 6398 | -6/Lower Caves | Build established: Scavenger-Skirmisher 6428 | -6/Lower Caves | Attracted the attention of an 0b10 outpost 6440 | -6/Lower Caves | Encountered a Warlord checkpoint 6733 | -6/Lower Caves | Spotted B-75 Beast 6799 | -6/Lower Caves | Revealed the true nature of CR-A16's Pointy Stick 6804 | -6/Lower Caves | Destroyed B-75 Beast 6829 | -6/Lower Caves | Lost 3 parts (3n) 6963 | -6/Lower Caves | Discovered new exit (range 10) 6976 | -6/Lower Caves | Identified exit to Data Miner 6984 | -6/Lower Caves | Entered Data Miner 6984 | -6/Data Miner | Discovered new exit (range 6) 7015 | -6/Data Miner | Met Data Miner 7042 | -6/Data Miner | Learned location of Section 7 (-3) 7042 | -6/Data Miner | Acquired the access code to Warlord's prototype stash 7068 | -6/Data Miner | Received God Mode back door access code from Data Miner 7103 | -6/Data Miner | Identified exit to Proximity Caves 7106 | -6/Data Miner | Entered Proximity Caves 7106 | -5/Proximity Caves | Identified exit to Factory 7321 | -5/Proximity Caves | Spotted B-75 Beast 7354 | -5/Proximity Caves | Destroyed B-75 Beast 7375 | -5/Proximity Caves | Lost 3 parts (1p1n1w) 7403 | -5/Proximity Caves | Acquired the password to a Derelict Tinkerer's latest research 7421 | -5/Proximity Caves | Found Prototype Special Weapon 7680 | -5/Proximity Caves | Caught by Unaware searching for contraband prototypes 7690 | -5/Proximity Caves | Entered Factory 7690 | -5/Factory | Evolved 2 slots: Utility x2 7720 | -5/Factory | Lost 7 parts (1p2n2u2w) 7723 | -5/Factory | Garrison activated, responded to threat 8076 | -5/Factory | Garrison activated, responded to threat 8173 | -5/Factory | Discovered new exit (range 15) 8254 | -5/Factory | Identified Molecular Deconstructor 8276 | -5/Factory | Identified exit to Factory 8276 | -5/Factory | Entered another Factory area 8276 | -4/Factory | Evolved 2 slots: Propulsion x2 8286 | -4/Factory | Identified exit to DSF 8287 | -4/Factory | Entered DSF 8298 | -4/DSF | Lost 12 parts (1p5n2u4w) 8317 | -4/DSF | Found Imp. Powered Armor 8320 | -4/DSF | Additional patrols routed to DSF 8320 | -4/DSF | Found Imp. Powered Armor 8470 | -4/DSF | Released all parts (6) 8473 | -4/DSF | Discovered new exit (range 14) 8491 | -4/DSF | Entered Research 8491 | -3/Research | Evolved 2 slots: Utility x2 8500 | -3/Research | Lost 8 parts (3n5u) 8601 | -3/Research | Build established: Mutant 8635 | -3/Research | Lost 5 parts (4n1w) 8911 | -3/Research | Build established: Scavenger-Tank 9138 | -3/Research | Core integrity fell below 50% 9147 | -3/Research | Self-destructed Last Messages --------------- 08725_ Dropped Xenon Bombardment Thruster. 08728_ Acquired Imp. Antigrav System. 08736_ Acquired Xenon Bombardment Thruster. 08741_ Acquired Power Sword. 08745_ Dropped Power Sword. 08747_ Recycling Unit disabled. 08805_ ALERT: Potential suspicious activity detected, Programmers report to Research Zone 4N. 09129_ Slug penetrates Wall. 09136_ Slammed into P-80 Master. 09140_ Door malfunctions. 09140_ Slug penetrates Wall. 09142_ System corrupted: Heat flow error (+295). 09142_ Slug penetrates Wall. 09142_ Slug penetrates H-77 Assassin. 09142_ Slug penetrates Wall. 09143_ Imp. Antigrav System destroyed. 09143_ Penetrated by Slug. 09147_ Slug penetrates Wall. Map ----- +----------------------------------------------------+ | ?????????????????????????????????????????????????? | | ?????????????????????????????????????????????????? | | ?????????????????????????????????????????????????? | | ?????????????????????????????????????????????????? | | ?????????????????????????????????????????????????? | | ?????????????????????????????????????????????????? | | ?????????????????????????????????????????????????? | | ?????????????????????########?????????????###????? | | ?????????????????????# #????????????## #####? | | ?????????????????????# #????????????# #? | | ?????????????????????# #????????????# #? | | ???? ???????????????# #????????????# #? | | ???# ???????????##??# #????????????# #? | | ???# ?????????#"""#?# #########????# ""#? | | ???# ?????????#"T"#?# # ! #??# ""#? | | ??## ##########" "### # #??# /""#? | | ??# ? # # """"" #?## "#? | | ??# # # """"" #?#" ""## | | ??# + # """"" *#?## ""#" | | ??# # # #??# ""## | | ??# """ # # #??# ## | | ??# """ """ # # #??# ## | | ??# "Y """^ #####h####+#############""##" | | ??# """ p " | | ??+ ! p u " | | ??# @ p " | | ??# ! " | | ??# ##########+#############/#############"#### | | ??# #????# #????# #???# # | | ??# #????# #????# #???# # | | ??# #????# """"" #????# ?""" #???#""" # | | ??# #????# """"" #????# """ #???#""" # | | ??# #????# """"" #????# """ #???#""" # | | ??# #????# #????#= """ #???#""" # | | ??# #????+ #????#= """ #???#""" # | | ??# #????# #????# #???# # | | ??# #????###########????# #???# # | | ??######???????????????????##########???########## | | ?????????????????????????????????????????????????? | | ?????????????????????????????????????????????????? | | ?????????????????????????????????????????????????? | | ?????????????????????????????????????????????????? | | ?????????????????????????????????????????????????? | | ?????????????????????????????????????????????????? | | ?????????????????????????????????????????????????? | | ?????????????????????????????????????????????????? | | | | | | | | | +----------------------------------------------------+ Best States ------------- Heat Dissipation 94 Energy Generation 41 Energy Capacity 580 Matter Stores 300 Matter Capacity 300 Sight Range 16 Robot Scan Range 20 Terrain Scan Range 16 Terrain Scan Density 135 Armor Coverage 2075 Resistance: KI 10 Resistance: EM 20 Weapon Shielding 66 Evasion (%) 62 Targeting Accuracy 20 Recoil Reduction 5 Item Schematics ----------------- Flak Gun | -7/Zion | Archive Flexi-carbon Leg | -7/Zion | Archive Recalibrator | -7/Zion | Archive Imp. Target Analyzer | -7/Zion | Archive Matter Filter | -7/Zion | Archive Gatling Laser | -7/Zion | Archive Imp. Hacking Suite | -7/Zion | Archive Imp. Focal Shield | -7/Zion | Archive Adv. Terrain Scanner | -7/Zion | Archive Coolant Injector | -7/Zion | Archive Coil Gun | -7/Zion | Archive Adv. Plasma Cannon | -7/Zion | Archive Med. Treads | -7/Zion | Archive Imp. Proton Missile Launcher | -7/Zion | Archive Dynamic Insulation System | -7/Zion | Archive Combat Drone Bay | -6/Data Miner | Free Lgt. Regenerative Plating | -6/Data Miner | Free Cld. Gravmag System | -6/Data Miner | Free Exp. Heat Sink | -6/Data Miner | Free Kinetic Spear | -6/Data Miner | Free Imp. Antigrav System | -6/Data Miner | Free Lrn. Terrain Scanner | -6/Data Miner | Free Hardcell Cannon | -6/Data Miner | Free Gyrokinetic Inverter | -6/Data Miner | Free Biometal Medium Treads | -6/Data Miner | Free Com. HERF Cannon | -6/Data Miner | Free Robot Schematics ------------------ A-02 Transporter | -7/Zion | Archive B-48 Gladiator | -7/Zion | Archive T-07 Excavator | -7/Zion | Archive L-41 Fighter | -6/Data Miner | Free S-27 Virus | -6/Data Miner | Free G-50 Soldier | -6/Data Miner | Free R-10 Processor | -6/Data Miner | Free A-27 Freighter | -6/Data Miner | Free Fabricated ------------ Nothing Repaired ---------- Nothing Studied --------- Wheel | -9/Materials | Hacked Ion Engine | -9/Materials | Hacked Gatling Laser | -6/Factory | Hacked Alien Tech Used ----------------- Core Expander Achievements -------------- None Challenges ------------ None Game ------ Seed ComponentInsulatedLauncher Manual? 0 Play Time 00:58:35 Cumulative 258.9 hours Start 2026.08.10 @ 16:44:02 End 2026.08.10 @ 17:40:56 Sessions 1 Manual Loads 0 Difficulty Rogue Special Mode None Game No. 339 Rogue 339 Adventurer 0 Explorer 0 Win Type - Total 5 Types 4/0/0/1/0/0/0/0/0/0 Lore% 79 Gallery% 65 Achievement% 53 Wizard Run 0 Options --------- Layout 2 ASCII 0 Keyboard 0 Movement Mouse Keybinds 0 Fullscreen 1 Font 24/Smallcaps Map View 50x44 Zoom Use 0% Tactical HUD 1 Map Filters NONE Filters NONE Steam 1 RUN: 6d7a9fcb-df90-40a2-8d66-0f0b051d2b42